{"text_format":"1","workbook":"xlsx","n_sheets":1,"sheets":["База"],"not_rendered":{"charts":0,"images":0,"macros":1,"external_links":0,"defined_names":0,"comments":0,"pivot_tables":0},"unopened":[],"bounds":{"document_bytes":16777216,"sheet_cells":100000,"rows_first":2000,"rows_last":500,"rows_between":2000,"halvings":0,"cell_chars":16384,"cell_head_chars":4096},"cells_cut":0,"cells_raw":0,"read":"whole","date_system":"1900"}

{"sheet":"База","index":0,"n_rows":21,"n_cols":113,"rows_kept":21,"cut":false,"hidden":false,"merged":[]}
[]
[]
["№","Номер договора","Дата договора","Столбец1","Столбец2","Столбец4","Столбец5","Столбец6","Столбец7","Столбец8","Столбец9","Столбец10","Столбец11","Адрес","Столбец12","Столбец13","Столбец14","Столбец15","Вид работы","Столбец16","Столбец17","Столбец18","Столбец19","Столбец20","Столбец21","Столбец22","Столбец23","Столбец24","Столбец25","Столбец26","Столбец27","Столбец28","Столбец29","Столбец30","Столбец31","Столбец32","Столбец33","Столбец34","Столбец35","Столбец36","Столбец37","Столбец38","Столбец39","Столбец40","Столбец41","Столбец42","Столбец43","Столбец44","Столбец45","Столбец46","Столбец47","Столбец48","Столбец49","Столбец50","Столбец51","Столбец52","Столбец53","Столбец54","Столбец55","Столбец56","Столбец57","Столбец58","Столбец59","Столбец60","Столбец61","Столбец62","Столбец63","Столбец64","Столбец65","Столбец66","Столбец67","Столбец68","Столбец69","Столбец70","Столбец71","Столбец72","Столбец73","Столбец74","Столбец75","Столбец76","Столбец77","Столбец78","Столбец79","Столбец80","Столбец81","Столбец82","Столбец83","Столбец84","Столбец85","Столбец86","Столбец87","Столбец88","Столбец89","Столбец90","Столбец91","Столбец92","Столбец93","Столбец94","Столбец95","Столбец96","Столбец97","Столбец98","Столбец99","Столбец100","Столбец101","Столбец102","Столбец103","Столбец104","Столбец105","Столбец106","Столбец107","Столбец108","Столбец109"]
["1","2","3","4","5","6","7","8","9","10","11","12","13","14","15","16","17","18","19",20,"21","22","23","24","25","26","27","28","29","30","31","32","33","34","35","36","37","38","39","40","41","42","43","44","45","46","47","48","49","50","51","52","53","54","55","56","57","58","59","60","61","62","63","64","65","66","67","68","69","70","71","72","73","74","75","76","77","78","79","80","81","82","83","84","85","86","87","88","89","90","91","92","93","94","95","96","97","98","99","100","101","102","103","104","105","106","107","108","109","110","111","112","113"]
["1","ПСД-000113-18",null,null,null,null,null,null,null,null,null,null,null,"Бориса Галушкина ул. 10",null,null,null,null,"разработка проектной документации",null,{"$f":"N5&S5","v":"Бориса Галушкина ул. 10разработка проектной документации"},null,null,null,null,null,null,null,null,null,null,null,null,null,null,null,null,null,null,null,null,null,null,null,null,null,null,null,null,null,null,null,null,null,null,null,null,null,null,null,null,null,null,null,null,null,null,null,null,null,null,null,null,null,null,null,null,null,null,null,null,null,null,null,null,null,null,null,null,null,null,null,null,null,null,null,null,null,null,null,null,null,null,null,null,null,null,null,null,null,null,null,{"$f":"B5","v":"ПСД-000113-18"}]
["2","КР-004090-19",null,null,null,null,null,null,null,null,null,null,null,"Бориса Галушкина ул. 10",null,null,null,null,"ремонт внутридомовых инженерных сетей электроснабжения",null,{"$f":"N6&S6","v":"Бориса Галушкина ул. 10ремонт внутридомовых инженерных сетей электроснабжения"},null,null,null,null,null,null,null,null,null,null,null,null,null,null,null,null,null,null,null,null,null,null,null,null,null,null,null,null,null,null,null,null,null,null,null,null,null,null,null,null,null,null,null,null,null,null,null,null,null,null,null,null,null,null,null,null,null,null,null,null,null,null,null,null,null,null,null,null,null,null,null,null,null,null,null,null,null,null,null,null,null,null,null,null,null,null,null,null,null,null,null,{"$f":"B6","v":"КР-004090-19"}]
["3","КР-004090-19",null,null,null,null,null,null,null,null,null,null,null,"Бориса Галушкина ул. 10",null,null,null,null,"ремонт внутридомовых инженерных систем водоотведения (канализации) (выпуски и сборные трубопроводы)",null,"Бориса Галушкина ул. 10ремонт внутридомовых инженерных систем водоотведения (канализации) (выпуски и сборные трубопроводы)",null,null,null,null,null,null,null,null,null,null,null,null,null,null,null,null,null,null,null,null,null,null,null,null,null,null,null,null,null,null,null,null,null,null,null,null,null,null,null,null,null,null,null,null,null,null,null,null,null,null,null,null,null,null,null,null,null,null,null,null,null,null,null,null,null,null,null,null,null,null,null,null,null,null,null,null,null,null,null,null,null,null,null,null,null,null,null,null,null,null,null,"КР-004090-19"]
["4","КР-004090-19",null,null,null,null,null,null,null,null,null,null,null,"Бориса Галушкина ул. 10",null,null,null,null,"ремонт внутридомовых инженерных систем горячего водоснабжения (разводящие магистрали)",null,"Бориса Галушкина ул. 10ремонт внутридомовых инженерных систем горячего водоснабжения (разводящие магистрали)",null,null,null,null,null,null,null,null,null,null,null,null,null,null,null,null,null,null,null,null,null,null,null,null,null,null,null,null,null,null,null,null,null,null,null,null,null,null,null,null,null,null,null,null,null,null,null,null,null,null,null,null,null,null,null,null,null,null,null,null,null,null,null,null,null,null,null,null,null,null,null,null,null,null,null,null,null,null,null,null,null,null,null,null,null,null,null,null,null,null,null,"КР-004090-19"]
["5","КР-004090-19",null,null,null,null,null,null,null,null,null,null,null,"Бориса Галушкина ул. 10",null,null,null,null,"ремонт внутридомовых инженерных систем теплоснабжения (разводящие магистрали)",null,"Бориса Галушкина ул. 10ремонт внутридомовых инженерных систем теплоснабжения (разводящие магистрали)",null,null,null,null,null,null,null,null,null,null,null,null,null,null,null,null,null,null,null,null,null,null,null,null,null,null,null,null,null,null,null,null,null,null,null,null,null,null,null,null,null,null,null,null,null,null,null,null,null,null,null,null,null,null,null,null,null,null,null,null,null,null,null,null,null,null,null,null,null,null,null,null,null,null,null,null,null,null,null,null,null,null,null,null,null,null,null,null,null,null,null,"КР-004090-19"]
["6","КР-004090-19",null,null,null,null,null,null,null,null,null,null,null,"Бориса Галушкина ул. 10",null,null,null,null,"ремонт внутридомовых инженерных систем холодного водоснабжения (разводящие магистрали)",null,"Бориса Галушкина ул. 10ремонт внутридомовых инженерных систем холодного водоснабжения (разводящие магистрали)",null,null,null,null,null,null,null,null,null,null,null,null,null,null,null,null,null,null,null,null,null,null,null,null,null,null,null,null,null,null,null,null,null,null,null,null,null,null,null,null,null,null,null,null,null,null,null,null,null,null,null,null,null,null,null,null,null,null,null,null,null,null,null,null,null,null,null,null,null,null,null,null,null,null,null,null,null,null,null,null,null,null,null,null,null,null,null,null,null,null,null,"КР-004090-19"]
["7","КР-004090-19",null,null,null,null,null,null,null,null,null,null,null,"Бориса Галушкина ул. 10",null,null,null,null,"ремонт или замена мусоропровода",null,"Бориса Галушкина ул. 10ремонт или замена мусоропровода",null,null,null,null,null,null,null,null,null,null,null,null,null,null,null,null,null,null,null,null,null,null,null,null,null,null,null,null,null,null,null,null,null,null,null,null,null,null,null,null,null,null,null,null,null,null,null,null,null,null,null,null,null,null,null,null,null,null,null,null,null,null,null,null,null,null,null,null,null,null,null,null,null,null,null,null,null,null,null,null,null,null,null,null,null,null,null,null,null,null,null,"КР-004090-19"]
["8","КР-004090-19",null,null,null,null,null,null,null,null,null,null,null,"Бориса Галушкина ул. 10",null,null,null,null,"ремонт крыши",null,"Бориса Галушкина ул. 10ремонт крыши",null,null,null,null,null,null,null,null,null,null,null,null,null,null,null,null,null,null,null,null,null,null,null,null,null,null,null,null,null,null,null,null,null,null,null,null,null,null,null,null,null,null,null,null,null,null,null,null,null,null,null,null,null,null,null,null,null,null,null,null,null,null,null,null,null,null,null,null,null,null,null,null,null,null,null,null,null,null,null,null,null,null,null,null,null,null,null,null,null,null,null,"КР-004090-19"]
["9","КР-004090-19",null,null,null,null,null,null,null,null,null,null,null,"Бориса Галушкина ул. 10",null,null,null,null,"ремонт подвальных помещений, относящихся к общему имуществу собственников помещений",null,"Бориса Галушкина ул. 10ремонт подвальных помещений, относящихся к общему имуществу собственников помещений",null,null,null,null,null,null,null,null,null,null,null,null,null,null,null,null,null,null,null,null,null,null,null,null,null,null,null,null,null,null,null,null,null,null,null,null,null,null,null,null,null,null,null,null,null,null,null,null,null,null,null,null,null,null,null,null,null,null,null,null,null,null,null,null,null,null,null,null,null,null,null,null,null,null,null,null,null,null,null,null,null,null,null,null,null,null,null,null,null,null,null,"КР-004090-19"]
["10","КР-004090-19",null,null,null,null,null,null,null,null,null,null,null,"Бориса Галушкина ул. 10",null,null,null,null,"ремонт подъездов, направленный на восстановление их надлежащего состояния и проводимый при выполнении иных работ",null,"Бориса Галушкина ул. 10ремонт подъездов, направленный на восстановление их надлежащего состояния и проводимый при выполнении иных работ",null,null,null,null,null,null,null,null,null,null,null,null,null,null,null,null,null,null,null,null,null,null,null,null,null,null,null,null,null,null,null,null,null,null,null,null,null,null,null,null,null,null,null,null,null,null,null,null,null,null,null,null,null,null,null,null,null,null,null,null,null,null,null,null,null,null,null,null,null,null,null,null,null,null,null,null,null,null,null,null,null,null,null,null,null,null,null,null,null,null,null,"КР-004090-19"]
["11","КР-004090-19",null,null,null,null,null,null,null,null,null,null,null,"Бориса Галушкина ул. 10",null,null,null,null,"ремонт фасада",null,"Бориса Галушкина ул. 10ремонт фасада",null,null,null,null,null,null,null,null,null,null,null,null,null,null,null,null,null,null,null,null,null,null,null,null,null,null,null,null,null,null,null,null,null,null,null,null,null,null,null,null,null,null,null,null,null,null,null,null,null,null,null,null,null,null,null,null,null,null,null,null,null,null,null,null,null,null,null,null,null,null,null,null,null,null,null,null,null,null,null,null,null,null,null,null,null,null,null,null,null,null,null,"КР-004090-19"]
["12","ПСД-000105-18",null,null,null,null,null,null,null,null,null,null,null,"Бориса Галушкина ул. 12",null,null,null,null,"разработка проектной документации",null,"Бориса Галушкина ул. 12разработка проектной документации",null,null,null,null,null,null,null,null,null,null,null,null,null,null,null,null,null,null,null,null,null,null,null,null,null,null,null,null,null,null,null,null,null,null,null,null,null,null,null,null,null,null,null,null,null,null,null,null,null,null,null,null,null,null,null,null,null,null,null,null,null,null,null,null,null,null,null,null,null,null,null,null,null,null,null,null,null,null,null,null,null,null,null,null,null,null,null,null,null,null,null,"ПСД-000105-18"]
["13","КР-004081-19",null,null,null,null,null,null,null,null,null,null,null,"Бориса Галушкина ул. 12",null,null,null,null,"ремонт внутридомовых инженерных сетей электроснабжения",null,"Бориса Галушкина ул. 12ремонт внутридомовых инженерных сетей электроснабжения",null,null,null,null,null,null,null,null,null,null,null,null,null,null,null,null,null,null,null,null,null,null,null,null,null,null,null,null,null,null,null,null,null,null,null,null,null,null,null,null,null,null,null,null,null,null,null,null,null,null,null,null,null,null,null,null,null,null,null,null,null,null,null,null,null,null,null,null,null,null,null,null,null,null,null,null,null,null,null,null,null,null,null,null,null,null,null,null,null,null,null,"КР-004081-19"]
["14","КР-004081-19",null,null,null,null,null,null,null,null,null,null,null,"Бориса Галушкина ул. 12",null,null,null,null,"ремонт внутридомовых инженерных систем водоотведения (канализации) (выпуски и сборные трубопроводы)",null,"Бориса Галушкина ул. 12ремонт внутридомовых инженерных систем водоотведения (канализации) (выпуски и сборные трубопроводы)",null,null,null,null,null,null,null,null,null,null,null,null,null,null,null,null,null,null,null,null,null,null,null,null,null,null,null,null,null,null,null,null,null,null,null,null,null,null,null,null,null,null,null,null,null,null,null,null,null,null,null,null,null,null,null,null,null,null,null,null,null,null,null,null,null,null,null,null,null,null,null,null,null,null,null,null,null,null,null,null,null,null,null,null,null,null,null,null,null,null,null,"КР-004081-19"]
["15","КР-004081-19",null,null,null,null,null,null,null,null,null,null,null,"Бориса Галушкина ул. 12",null,null,null,null,"ремонт внутридомовых инженерных систем водоотведения (канализации) (стояки)",null,"Бориса Галушкина ул. 12ремонт внутридомовых инженерных систем водоотведения (канализации) (стояки)",null,null,null,null,null,null,null,null,null,null,null,null,null,null,null,null,null,null,null,null,null,null,null,null,null,null,null,null,null,null,null,null,null,null,null,null,null,null,null,null,null,null,null,null,null,null,null,null,null,null,null,null,null,null,null,null,null,null,null,null,null,null,null,null,null,null,null,null,null,null,null,null,null,null,null,null,null,null,null,null,null,null,null,null,null,null,null,null,null,null,null,"КР-004081-19"]
["16","КР-004081-19",null,null,null,null,null,null,null,null,null,null,null,"Бориса Галушкина ул. 12",null,null,null,null,"ремонт внутридомовых инженерных систем горячего водоснабжения (разводящие магистрали)",null,"Бориса Галушкина ул. 12ремонт внутридомовых инженерных систем горячего водоснабжения (разводящие магистрали)",null,null,null,null,null,null,null,null,null,null,null,null,null,null,null,null,null,null,null,null,null,null,null,null,null,null,null,null,null,null,null,null,null,null,null,null,null,null,null,null,null,null,null,null,null,null,null,null,null,null,null,null,null,null,null,null,null,null,null,null,null,null,null,null,null,null,null,null,null,null,null,null,null,null,null,null,null,null,null,null,null,null,null,null,null,null,null,null,null,null,null,"КР-004081-19"]
["17","КР-004081-19",null,null,null,null,null,null,null,null,null,null,null,"Бориса Галушкина ул. 12",null,null,null,null,"ремонт внутридомовых инженерных систем теплоснабжения (разводящие магистрали)",null,"Бориса Галушкина ул. 12ремонт внутридомовых инженерных систем теплоснабжения (разводящие магистрали)",null,null,null,null,null,null,null,null,null,null,null,null,null,null,null,null,null,null,null,null,null,null,null,null,null,null,null,null,null,null,null,null,null,null,null,null,null,null,null,null,null,null,null,null,null,null,null,null,null,null,null,null,null,null,null,null,null,null,null,null,null,null,null,null,null,null,null,null,null,null,null,null,null,null,null,null,null,null,null,null,null,null,null,null,null,null,null,null,null,null,null,"КР-004081-19"]